Cogmind - Beta 14 @@@ ROGUE MODE // 2024.08.31 @ 11:13:43 Player: Minty Result: Destroyed by G-47 Trooper with Particle Gun Performance ------------- Evolutions (0) 0 Regions Visited (1) 200 Robots Destroyed (6) 30 Value Destroyed (146) 146 Prototype IDs (0) 0 Alien Tech Used (0) 0 Bonus (0) 0 TOTAL SCORE: 376 Bonus ------- None Cogmind --------- Core Integrity 0/250 Matter 254/300 Energy 42/100 System Corruption 1% Temperature Cool (9) Movement Rolling (80) Location -10/Materials Parts ------- > --- POWER (1) -------- (None) > --- PROPULSION (2) --- Wheel Compact Wheel > --- UTILITY (2) ------ Small Storage Unit > --- WEAPON (2) ------- (None) > --- INVENTORY (8) ---- Light Treads Light Treads Sensor Array Peak State ------------ > --- POWER ------------ Light Ion Engine > --- PROPULSION ------- Aluminum Leg Aluminum Leg > --- UTILITY ---------- Small Storage Unit Sensor Array > --- WEAPON ----------- EM Pulse Gun EM Pulse Gun > --- INVENTORY -------- Ion Engine Light Treads Light Treads Wheel Compact Wheel Small Laser [Rating: 7] Favorites ----------- Power Ion Engine Engine Ion Engine Propulsion Aluminum Leg Treads Light Treads Leg Aluminum Leg Wheel Wheel Utility Small Storage Unit Device Sensor Array Storage Small Storage Unit Weapon EM Pulse Gun Energy Gun EM Pulse Gun Build | -11 -10 ------- Run | Yrd Mat Slots Evolved . | . . Power . | . . Propulsion . | . . Utility . | . . Weapon . | . . Parts Attached 8 | . 8 Power 1 | . 1 Engine 1 | . 1 Core . | . . Reactor . | . . Propulsion 4 | . 4 Treads 2 | . 2 Leg . | . . Wheel 2 | . 2 Hover . | . . Flight . | . . Utility 1 | . 1 Device 1 | . 1 Storage . | . . Processor . | . . Hackware . | . . Protection . | . . Artifact . | . . Weapon 2 | . 2 Energy Gun 2 | . 2 Energy Cannon . | . . Ballistic Gun . | . . Ballistic Cannon . | . . Launcher . | . . Special Weapon . | . . Impact Weapon . | . . Slashing Weapon . | . . Piercing Weapon . | . . Special Melee Weapon . | . . Unidentified Prototypes . | . . Parts Lost 6 | . 6 Power 2 | . 2 Propulsion 1 | . 1 Utility . | . . Weapon 3 | . 3 Highest Loss Streak 4 | . 4 To Critical Strikes . | . . Average Slot Usage (%) 69 | . 69 Engine 11 | . 11 Treads 4 | . 4 Leg 16 | . 16 Wheel 4 | . 4 Storage 14 | . 14 Energy Gun 17 | . 17 Peak Build Rating 7 | . 7 Average Rating 4 | . 4 On Entrance 6 | 6 6 Naked Turns . | . . Heaviest Build 13 | 12 13 Greatest Support 40 | 20 40 Greatest Overweight (x) 1 | . 1 Average Overweight (x) . | . . Largest Inventory Capacity 8 | . 8 Average Capacity 8 | . 8 Most Carried 7 | . 7 Average Carried 5 | . 5 Final Capacity 8 | 8 8 Final Carried 6 | 6 3 Class Distribution -------------------- 100% | Mutant Dominant Class ---------------- Mutant | -10/Materials Resources | -11 -10 ----------- Run | Yrd Mat Matter Collected 203 | 160 43 Remotely . | . . Salvage Created 277 | . 277 Parts 13 | . 13 Haulers Intercepted . | . . Recyclers Shooed 3 | . 3 Parts Field Recycled . | . . Retrieved Matter . | . . Parts Self-Destructed . | . . Prevented . | . . Kills | -11 -10 ------- Run | Yrd Mat Combat Hostiles Destroyed 3 | . 3 Guns 2 | . 2 Classes Destroyed 3 | . 3 Worker 2 | . 2 Recycler 1 | . 1 Grunt 3 | . 3 Best Kill Streak 2 | . 2 Combat Bots Only 1 | . 1 Max Kills in Single Turn 1 | . 1 Gunslinging . | . . Exploded . | . . Melee . | . . Uniques/NPCs Destroyed . | . . Combat | -11 -10 -------- Run | Yrd Mat Hostile Shots Fired 105 | . 105 Missed 25 | . 25 Damage Taken 1004 | . 1004 Core 259 | . 259 Absorbed by Shields . | . . Core Remaining (%) 100 | 100 . Volleys Fired 39 | . 39 Largest 2 | . 2 Hottest 80 | . 80 Shots Fired 53 | . 53 Gun 53 | . 53 Cannon . | . . Launcher . | . . Special . | . . Kinetic . | . . Thermal 17 | . 17 Explosive . | . . Electromagnetic 36 | . 36 Robot Hit Streak 7 | . 7 Robot Miss Streak 3 | . 3 Penetration Max . | . . Secondary Targets 1 | . 1 Max Gunslinging Chain 1 | . 1 Shots Hit Robots 33 | . 33 Core Hits 11 | . 11 Critical Kills . | . . Critical Parts Destroyed . | . . Critical Strikes 2 | . 2 Corrupt 2 | . 2 Melee Attacks . | . . Impact . | . . Slashing . | . . Piercing . | . . Sneak Attacks . | . . Combat Hostiles . | . . Follow-up Attacks . | . . Damage Inflicted 462 | . 462 Guns 458 | . 458 Cannons . | . . Explosions . | . . Melee . | . . Ramming 4 | . 4 Kinetic . | . . Thermal 123 | . 123 Explosive . | . . Electromagnetic 335 | . 335 Impact . | . . Slashing . | . . Piercing . | . . Highest Corruption 1 | . 1 Average Corruption 1 | . 1 Corruption Purged . | . . Corruption Blocked . | . . Effects 2 | . 2 Matter Fused 1 | . 1 Misfires 1 | . 1 Overload Shots . | . . Overflow Damage . | . . Projectiles . | . . Explosions . | . . Melee . | . . Knockbacks . | . . Impact . | . . Kinetic . | . . Secondary . | . . Self-Inflicted Damage . | . . Shots . | . . Rammed . | . . Targets Rammed 3 | . 3 Kicked 3 | . 3 Crushed . | . . Highest Temperature 191 | . 191 Average Temperature 45 | . 45 Received Heat Transfer 564 | . 564 Siege Activations . | . . Robots Corrupted 2 | . 2 Combat Hostiles 1 | . 1 Parts Fried 3 | . 3 Impact Corruptions . | . . Robots Melted . | . . Combat Hostiles . | . . Parts Melted 1 | . 1 Heat Transferred 275 | . 275 Parts Sabotaged . | . . Parts Stolen . | . . Parts Stripped . | . . Power Chain Reactions . | . . Alert | -11 -10 ------- Run | Yrd Mat Peak Influence 135 | . 135 Initial . | . . Average 60 | . 60 Maximum Alert Level . | . . Low Security (%) 100 | . 100 Level 1 . | . . Level 2 . | . . Level 3 . | . . Level 4 . | . . Level 5 . | . . High Security . | . . Max Security . | . . Squads Dispatched 1 | . 1 Investigation 1 | . 1 Extermination . | . . Reinforcement . | . . Assault . | . . Garrison . | . . Intercept . | . . Searches Triggered . | . . Construction Impeded . | . . Haulers Reinforced . | . . Active Scanning Responses . | . . Cargo Convoy Interrupts . | . . Stealth | -11 -10 --------- Run | Yrd Mat Distress Signals 3 | . 3 Communications Jammed . | . . Distress Signals . | . . Times Spotted 14 | . 14 Peak Tracking Total 6 | . 6 Tactical Retreats 1 | . 1 Traps | -11 -10 ------- Run | Yrd Mat Traps Triggered 1 | . 1 Indirectly . | . . Trap Hack Attempts . | . . Triggered . | . . Disarmed . | . . Reprogrammed . | . . Reused . | . . Traps Extracted . | . . Installed . | . . Triggered 2 | . 2 Machines | -11 -10 ---------- Run | Yrd Mat Machines Disabled 1 | . 1 Max in Single Turn 1 | . 1 Machines Repaired . | . . Machines Dismantled . | . . Machines Sabotaged . | . . Overloaded Fab Kills . | . . Hacking | -11 -10 --------- Run | Yrd Mat Machines Accessed 2 | . 2 Terminals 2 | . 2 Fabricators . | . . Repair Stations . | . . Recycling Units . | . . Scanalyzers . | . . Garrison Access . | . . Total Hacks 7 | . 7 Successful 1 | . 1 Failed 6 | . 6 Catastrophic 2 | . 2 Database Lockouts . | . . Manual 5 | . 5 Terminals 7 | . 7 Fabricators . | . . Repair Stations . | . . Recycling Units . | . . Scanalyzers . | . . Garrison Access . | . . Terminal Hacks 1 | . 1 Locate Traps 1 | . 1 Fabricator Hacks . | . . Repair Station Hacks . | . . Recycling Unit Hacks . | . . Scanalyzer . | . . Garrison Access Hacks . | . . Unauthorized Hacks . | . . Terminals . | . . Fabricators . | . . Repair Stations . | . . Recycling Units . | . . Scanalyzers . | . . Garrison Access . | . . Data Cores Recovered . | . . Used . | . . Hacking Detections 2 | . 2 Full Trace Events 2 | . 2 Feedback Events . | . . Feedback Blocked . | . . Robot Schematics Acquired . | . . Robots Built . | . . Authchips . | . . Time . | . . Total Robot Build Rating . | . . Part Schematics Acquired . | . . Parts Built . | . . Authchips . | . . Time . | . . Total Part Build Rating . | . . Parts Repaired . | . . Time . | . . Parts Recycled . | . . Recycled Matter . | . . Retrieved Matter . | . . Retrieved Components . | . . Parts Scanalyzed . | . . Part Schematics Acquired . | . . Parts Damaged . | . . Bothacking | -11 -10 ------------ Run | Yrd Mat Used RIF Installer . | . . Robots Hacked . | . . Non-combat . | . . Combat . | . . Robot Hacks Applied . | . . Relay Couplers Released . | . . Fabnet Peak Effective % . | . . Robots Rewired . | . . Allies Hacked . | . . Hacks Repelled . | . . Allies | -11 -10 -------- Run | Yrd Mat Total Allies . | . . Largest Group . | . . Highest-Rated Group . | . . Highest-Rated Ally . | . . Total Orders . | . . Ally Attacks . | . . Total Damage . | . . Kills . | . . Allies Corrupted . | . . Allies Melted . | . . Intel | -11 -10 ------- Run | Yrd Mat Robot Analysis Total . | . . Derelict Logs Recovered . | . . Drone Launches . | . . Drone Recoveries . | . . Exploration | -11 -10 ------------- Run | Yrd Mat Turns Passed 272 | . 272 Spaces Moved 125 | 1 124 Core . | . . Treads 17 | . 17 Legs 85 | 1 84 Wheels 23 | . 23 Hover . | . . Flight . | . . Fastest Speed 80 | 120 80 Average Speed 130 | 120 130 Slowest Speed 190 | 120 190 Overloaded Moves . | . . Propulsion Burnouts . | . . Robots Hopped . | . . Cave-ins Triggered . | . . Exploration Rate (%) 19 | 2 36 Regions Visited 1 Branch Regions . Pre-discovered Areas . | . . Known Exits Taken . | . . Unknown Exits Taken 1 | 1 . Scrap Searched . | . . Spaces Dug . | . . Terrain Destroyed . | . . Melee . | . . Projectile . | . . AOE . | . . Terrain Rammed . | . . Walls Destroyed . | . . Machines Disabled . | . . Actions | -11 -10 --------- Run | Yrd Mat Total 181 | . 181 Wait 4 | . 4 Move 124 | . 124 Hop . | . . Pick Up . | . . Fast Attach 2 | . 2 Attach 3 | . 3 Detach 1 | . 1 Swap 3 | . 3 Drop 2 | . 2 Fire 39 | . 39 Melee . | . . Ram . | . . Kick 3 | . 3 Crush . | . . Escape Stasis . | . . Rewire . | . . Trap . | . . Miscellaneous . | . . Route ------- -11/Scrapyard -10/Materials (discovered 1 exit: [*Min]) History --------- Turn | Location | Event 1 | -11/Scrapyard | Discovered new exit (range 0) 1 | -11/Scrapyard | Entered Materials 41 | -10/Materials | Discovered new exit (range 16) 126 | -10/Materials | Core integrity fell below 50% 160 | -10/Materials | Lost 4 parts (1p1n2w) 263 | -10/Materials | Core integrity fell below 20% 273 | -10/Materials | Destroyed by G-47 Trooper with Particle Gun Last Messages --------------- 00181_ K-01 Serf collects debris. 00192_ R-06 Scavenger collects Ion Engine. 00193_ K-01 Serf collects debris. 00201_ Dropped Sml. Laser. 00201_ Dropped Aluminum Leg. 00204_ W-16 Scout sends out distress signal. 00207_ K-01 Serf cleans the Nuclear Reactor. 00208_ R-06 Scavenger collects Aluminum Leg. 00211_ K-01 Serf collects debris. 00214_ K-01 Serf cleans the Nuclear Reactor. 00216_ System corrupted: Matter fused (-6). 00218_ Connecting with Terminal... 00219_ K-01 Serf cleans the Nuclear Reactor. 00241_ Acquired EM Pulse Gun. 00251_ Ion Engine destroyed. 00254_ G-47 Trooper destroyed. 00266_ R-06 Scavenger collects Particle Gun. 00269_ R-06 Scavenger collects Corrupted Lgt. Nuclear Core. 00269_ G-47 Trooper IFF system glitched. 00272_ EM Pulse Gun destroyed. Map ----- +----------------------------------------------------+ | | | | | | | | | | | | | | | | | | | | | ?????????????????????????????????????????????????? | | ???????????????????? ??????????????????????????? | | ???????????????????""" ?????????????????????????? | | ????????????????????Y" ????????????????????????? | | ????????????????????? ????????????????????????? | | ?????????????????????? "???????????????????????? | | ??????????????????????? "???????????????????????? | | ???????????????????????? ??###########+#???????? | | ????????????##############+### #???????? | | ??????????? #???????? | | ??????????? ####????? | | ??????????? = ???? | | ??????????????????########+### ???? | | ????????????????????# g%! # ???? | | ????????????????????# gg # ???? | | ????????????????????# @ # ???? | | ????????????????????# # ???? | | ????????????????????# |!! # ??? | | ????????????????????# |! # ??? | | ????????????????????# ! # ######## | | ????????????????????############/##### #?# | | ???????????????????????????# # #?# | | ???????????????????????????# T # #?# | | ???????????????????????????# """ # #?# | | ???????????????????????????# """ # #?# | | ???????????????????????????# ! """ # #?# | | ???????????????????????????# # #?# | | ???????????????????????????# ! # #?# | | ???????????????????????????# # #?# | | ???????????????????????????###/##+#### #######+ | | ?????????????????????????##### | | ?????????????????????????+ ^ | | ?????????????????????????######## """ ^^ | | ????????????????????????????#########[ """ ^^ | | ????????????????????????##### # """ | | ????????????????????? ^ | | ????????????????????? ^^ < | | ????????????????????? """ | | ??????????????????????? ##### ## """ ###" | | ????????????????????????????# "!"|" ?# "" #?# | +----------------------------------------------------+ Best States ------------- Heat Dissipation 25 Energy Generation 10 Energy Capacity 250 Matter Stores 300 Matter Capacity 300 Sight Range 16 Robot Scan Range 14 Terrain Scan Density 10 Evasion (%) 55 Recoil Reduction 2 Item Schematics ----------------- None Robot Schematics ------------------ None Fabricated ------------ Nothing Alien Tech Used ----------------- None Achievements -------------- None Challenges ------------ None Game ------ Seed FluxSensorMantle Manual? 0 Play Time 00:04:03 Cumulative 909.8 hours Start 2024.08.31 @ 11:10:55 End 2024.08.31 @ 11:13:43 Sessions 1 Manual Loads 0 Difficulty Rogue Special Mode None Game No. 1099 Rogue 819 Adventurer 124 Explorer 156 Win Type - Total 39 Types 28/0/8/1/1/0/0/1/0 Lore% 79 Gallery% 89 Achievement% 78 Wizard Run 0 Options --------- Layout 0 ASCII 0 Keyboard 1 Movement Numpad Keybinds 0 Fullscreen 2 Font 18/X11 Map View 76x50 Zoom Use 0% Tactical HUD 1 Map Filters NONE Filters NONE Steam 1 RUN: 1d0d0c7c-73f5-4668-90a7-70fc51dc8cc7